fUSD/lending_fUSD_20240706
["ID","MTS","AMOUNT","RATE_DAILY","PERIOD"]
[331331536,1720246582407,-236.0773,0.00027397,7]
[331331537,1720246582453,-236.0773,0.00027397,7]
[331331538,1720246582500,-236.0773,0.00027397,7]
[331331539,1720246582546,-236.0773,0.00027397,7]
[331331540,1720246582592,-236.0773,0.00027397,7]
[331331541,1720246582636,-236.0773,0.00027397,7]
[331331542,1720246582681,-236.077302,0.00027397,7]
[331331543,1720246582726,-293.17616671,0.00027715,30]
[331331544,1720246582772,-644.296296,0.00027757,7]
[331331545,1720246582819,-644.296293,0.00027757,7]
[331331546,1720246582865,-155.0,0.00028,6]
[331331547,1720246582911,-1839.95021381,0.00028,29]
[331331548,1720246582961,-890679.25,0.000283,5]
[331331549,1720246583007,-176.08939044,0.00028301,30]
[331331550,1720246583054,-13608.75771455,0.00028556,5]
[331331551,1720246583101,-176.08939044,0.00028712,30]
[331331552,1720246583151,-176.08939044,0.00029123,30]
[331331553,1720246583199,-1000.0,0.000295,30]
[331331554,1720246583471,-633.36112983,0.00029605,5]
[331331555,1720246583519,-889.906373,0.000298,30]
[331331556,1720246583564,-1500.0,0.0002999,6]
[331331557,1720246583611,-1500.0,0.0002999,5]
[331331558,1720246583659,-333632.00819083,0.0003,5]
[331331559,1720246583703,-250.0,0.0003,5]
[331331560,1720246583750,-381.39233305,0.0003,30]
[331331561,1720246583799,-3000.0,0.0003,30]
[331331562,1720246583846,-11016.5475767,0.0003,5]
[331331563,1720246583893,-3006.0,0.0003,30]
[331331564,1720246583939,-3000.0,0.0003,20]
[331331565,1720246583983,-2652.0,0.0003,30]
[331331566,1720246584026,-1000.0,0.0003,30]
[331331567,1720246584071,-9532.90335175,0.0003,7]
[331331568,1720246584118,-350.0,0.0003,15]
[331331569,1720246584165,-1334.85956,0.0003,30]
[331331570,1720246584209,-461.641715,0.0003,10]
[331331571,1720246584254,-155.93157011,0.00030064,7]
[331331572,1720246584298,-228.68577671,0.00030107,7]
[331331573,1720246584344,-155.93157011,0.00030128,7]
[331331574,1720246584392,-500.0,0.00030136,30]
[331331575,1720246584437,-432.62842567,0.00030136,30]
[331331576,1720246584484,-243.43717966,0.00030136,30]
[331331577,1720246584530,-500.0,0.00030136,6]
[331331578,1720246584577,-500.0,0.00030136,6]
[331331579,1720246584623,-500.0,0.00030136,6]
[331331580,1720246584670,-500.0,0.00030136,6]
[331331581,1720246584716,-500.0,0.00030136,6]
[331331582,1720246584763,-500.0,0.00030136,6]
[331331583,1720246584810,-244.33161991,0.00030136,6]
[331331584,1720246584856,-1394.28,0.00030136,30]
[331331585,1720246584904,-1394.28,0.00030136,30]
[331331586,1720246584951,-1394.28,0.00030136,30]
[331331587,1720246584998,-1394.28,0.00030136,30]
[331331588,1720246585051,-1394.28,0.00030136,30]
[331331589,1720246585099,-1394.28,0.00030136,30]
[331331590,1720246585148,-1394.28,0.00030136,30]
[331331591,1720246585194,-1394.28,0.00030136,30]
[331331592,1720246585241,-1394.28,0.00030136,30]
[331331593,1720246585288,-1394.28,0.00030136,30]
[331331594,1720246585334,-1394.28,0.00030136,30]
[331331595,1720246585382,-1394.28,0.00030136,30]
[331331596,1720246585433,-1394.28,0.00030136,30]
[331331597,1720246585479,-1394.28,0.00030136,30]
[331331598,1720246585524,-1394.28,0.00030136,30]
[331331599,1720246585570,-1394.28,0.00030136,30]
[331331600,1720246585616,-1394.28,0.00030136,30]
[331331601,1720246585662,-1394.28,0.00030136,30]
[331331602,1720246585708,-1394.28,0.00030136,30]
[331331603,1720246585756,-1394.28,0.00030136,30]
[331331604,1720246585807,-1394.28,0.00030136,30]
[331331605,1720246585854,-1394.28,0.00030136,30]
[331331606,1720246585902,-1394.28,0.00030136,30]
[331331607,1720246585950,-1394.49859441,0.00030136,30]
[331331608,1720246585995,-500.0,0.00030136,30]
[331331609,1720246586041,-500.0,0.00030136,30]
[331331610,1720246586086,-500.0,0.00030136,30]
[331331611,1720246586132,-237.93755329,0.00030136,30]
[331331612,1720246586179,-500.0,0.00030136,22]
[331331613,1720246586224,-500.0,0.00030136,22]
[331331614,1720246586272,-500.0,0.00030136,22]
[331331615,1720246586318,-500.0,0.00030136,22]
[331331616,1720246586364,-500.0,0.00030136,22]
[331331617,1720246586410,-500.0,0.00030136,22]
[331331618,1720246586456,-500.0,0.00030136,22]
[331331619,1720246586501,-500.0,0.00030136,22]
[331331620,1720246586546,-500.0,0.00030136,22]
[331331621,1720246586591,-500.0,0.00030136,22]
[331331622,1720246586636,-500.0,0.00030136,22]
[331331623,1720246586681,-500.0,0.00030136,22]
[331331624,1720246586728,-500.0,0.00030136,22]
[331331625,1720246586776,-519.01113249,0.00030136,22]
[331331626,1720246586825,-996.04,0.00030136,7]
[331331627,1720246586872,-996.04,0.00030136,7]
[331331628,1720246586920,-996.04,0.00030136,7]
[331331629,1720246586968,-996.04,0.00030136,7]
[331331630,1720246587017,-996.04,0.00030136,7]
[331331631,1720246587064,-996.04,0.00030136,7]
[331331632,1720246587109,-996.04,0.00030136,7]
[331331633,1720246587155,-996.04,0.00030136,7]
[331331634,1720246587200,-996.04,0.00030136,7]
[331331635,1720246587246,-996.04,0.00030136,7]
[331331636,1720246587290,-996.04,0.00030136,7]
[331331637,1720246587337,-996.04,0.00030136,7]
[331331638,1720246587383,-996.04,0.00030136,7]
[331331639,1720246587434,-996.04,0.00030136,7]
[331331640,1720246587480,-996.04,0.00030136,7]
[331331641,1720246587525,-996.04,0.00030136,7]
[331331642,1720246587571,-996.04,0.00030136,7]
[331331643,1720246587617,-996.04,0.00030136,7]
[331331644,1720246587665,-996.04,0.00030136,7]
[331331645,1720246587713,-996.04,0.00030136,7]
[331331646,1720246587761,-996.04,0.00030136,7]
[331331647,1720246587808,-996.04,0.00030136,7]
[331331648,1720246587855,-996.04,0.00030136,7]
[331331649,1720246587902,-996.11364752,0.00030136,7]
[331331650,1720246587951,-494.73316174,0.00030136,30]
[331331651,1720246588005,-2617.82,0.00030136,30]
[331331652,1720246588055,-2617.82,0.00030136,30]
[331331653,1720246588104,-2617.82,0.00030136,30]
[331331654,1720246588153,-2617.82,0.00030136,30]
[331331655,1720246588201,-2617.82,0.00030136,30]
[331331656,1720246588254,-2617.82,0.00030136,30]
[331331657,1720246588504,-2617.82,0.00030136,30]
[331331658,1720246588553,-2617.82,0.00030136,30]
[331331659,1720246588600,-2617.82,0.00030136,30]
[331331660,1720246588649,-2617.82,0.00030136,30]
[331331661,1720246588700,-2617.82,0.00030136,30]
[331331662,1720246588749,-2617.82,0.00030136,30]
[331331663,1720246588800,-2617.82,0.00030136,30]
[331331664,1720246588852,-2617.82,0.00030136,30]
[331331665,1720246588902,-2617.82,0.00030136,30]
[331331666,1720246588954,-2617.82,0.00030136,30]
[331331667,1720246589004,-2617.82,0.00030136,30]
[331331668,1720246589054,-2617.82,0.00030136,30]
[331331669,1720246589104,-2617.82,0.00030136,30]
[331331670,1720246589155,-2617.82,0.00030136,30]
[331331671,1720246589203,-2617.82,0.00030136,30]
[331331672,1720246589251,-2617.82,0.00030136,30]
[331331673,1720246589298,-2617.82,0.00030136,30]
[331331674,1720246589345,-2618.02182779,0.00030136,30]
[331331675,1720246589394,-500.0,0.00030136,5]
[331331676,1720246589441,-405.78836069,0.00030136,5]
[331331677,1720246589488,-500.0,0.00030136,30]
[331331678,1720246589534,-500.0,0.00030136,30]
[331331679,1720246589580,-500.0,0.00030136,30]
[331331680,1720246589639,-500.0,0.00030136,30]
[331331681,1720246589689,-182.98070126,0.00030136,30]
[331331682,1720246589738,-2841.62,0.00030136,30]
[331331683,1720246589797,-2841.62,0.00030136,30]
[331331684,1720246589849,-2841.62,0.00030136,30]
[331331685,1720246589901,-2841.62,0.00030136,30]
[331331686,1720246589950,-2841.62,0.00030136,30]
[331331687,1720246589998,-2841.62,0.00030136,30]
[331331688,1720246590048,-2841.62,0.00030136,30]
[331331689,1720246590097,-2841.62,0.00030136,30]
[331331690,1720246590146,-2841.62,0.00030136,30]
[331331691,1720246590193,-2841.62,0.00030136,30]
[331331692,1720246590242,-2841.62,0.00030136,30]
[331331693,1720246590288,-2841.62,0.00030136,30]
[331331694,1720246590335,-2841.62,0.00030136,30]
[331331695,1720246590384,-2841.62,0.00030136,30]
[331331696,1720246590433,-2841.62,0.00030136,30]
[331331697,1720246590481,-2841.62,0.00030136,30]
[331331698,1720246590528,-2841.62,0.00030136,30]
[331331699,1720246590575,-2841.62,0.00030136,30]
[331331700,1720246590622,-2841.62,0.00030136,30]
[331331701,1720246590670,-2841.62,0.00030136,30]
[331331702,1720246590717,-2841.62,0.00030136,30]
[331331703,1720246590772,-2841.62,0.00030136,30]
[331331704,1720246590824,-2841.62,0.00030136,30]
[331331705,1720246590874,-2841.6243173,0.00030136,30]
[331331706,1720246590924,-500.0,0.00030136,30]
[331331707,1720246590974,-286.64173496,0.00030136,30]
[331331708,1720246591026,-310.04421107,0.00030169,7]
[331331709,1720246591076,-317.60508538,0.00030187,7]
[331331710,1720246591127,-310.04421107,0.00030238,7]
[331331711,1720246591176,-151.13266062,0.00030245,7]
[331331712,1720246591227,-310.04421107,0.00030285,7]
[331331713,1720246591282,-166.66666666,0.00030307,7]
[331331714,1720246591332,-197.18792323,0.0003034,7]
[331331715,1720246591383,-151.13266062,0.00030389,7]
[331331716,1720246591443,-800.0,0.00030422,10]
[331331717,1720246591493,-284.21492039,0.0003043,7]
[331331718,1720246591542,-503.77470978,0.00030431,7]
[331331719,1720246591590,-166.66666666,0.00030452,7]
[331331720,1720246591637,-1000.0,0.000305,30]
[331331721,1720246591683,-1779.812747,0.000305,30]
[331331722,1720246591734,-539.17529113,0.00030511,7]
[331331723,1720246591785,-201.93810335,0.00030515,7]
[331331724,1720246591835,-193.39316758,0.00030516,7]
[331331725,1720246591890,-153.07323674,0.00030553,7]
[331331726,1720246591942,-193.39316758,0.00030581,7]
[331331727,1720246591995,-159.72954391,0.00030641,7]
[331331728,1720246592043,-503.77470978,0.00030669,7]
[331331729,1720246592091,-694.67935664,0.00030748,7]
[331331730,1720246592137,-317.60508538,0.0003079,7]
[331331731,1720246592188,-2224.765934,0.000308,30]
[331331732,1720246592237,-171.09473445,0.00030809,7]
[331331733,1720246592284,-300.0,0.0003083,10]
[331331734,1720246592334,-180.20156677,0.00030852,7]
[331331735,1720246592383,-197.18792323,0.00030914,7]
[331331736,1720246592435,-800.0,0.0003097,10]
[331331737,1720246592483,-14000.0,0.00031,7]
[331331738,1720246592531,-40000.0,0.00031,8]
[331331739,1720246592582,-40000.0,0.00031,15]
[331331740,1720246592632,-363.0,0.00031,120]
[331331741,1720246592679,-60000.0,0.00031,10]
[331331742,1720246592727,-160.38039715,0.00031,5]
[331331743,1720246592779,-1000.0,0.00031,30]
[331331744,1720246592827,-1000.0,0.00031,120]
[331331745,1720246592874,-1000.0,0.00031,120]
[331331746,1720246592922,-1000.0,0.00031,120]
[331331747,1720246592968,-1000.0,0.00031,120]
[331331748,1720246593016,-643.10987709,0.00031,5]
[331331749,1720246593064,-464.47726729,0.00031,30]
[331331750,1720246593112,-539.17529113,0.00031013,7]
[331331751,1720246593160,-310.04421107,0.0003112,7]
[331331752,1720246593207,-284.21492039,0.00031126,7]
[331331753,1720246593255,-3114.672308,0.000312,30]
[331331754,1720246593302,-292.99016051,0.00031241,7]
[331331755,1720246593360,-193.14139885,0.0003131,7]
[331331756,1720246593409,-154.45912842,0.00031323,7]
[331331757,1720246593456,-193.39316758,0.00031334,7]
[331331758,1720246593504,-166.66666666,0.00031366,7]
[331331759,1720246593850,-166.66666666,0.00031435,7]
[331331760,1720246593896,-151.13266062,0.00031435,7]
[331331761,1720246593943,-228.68577671,0.00031492,7]
[331331762,1720246593992,-209018.32,0.000315,6]
[331331763,1720246594038,-27082.52,0.000315,6]
[331331764,1720246594086,-42411.12,0.000315,6]
[331331765,1720246594135,-396.03,0.000315,6]
[331331766,1720246594184,-33475.89,0.000315,6]
[331331767,1720246594231,-24526.48,0.000315,6]
[331331768,1720246594279,-5652.78,0.000315,6]
[331331769,1720246594326,-500.0,0.000315,30]
[331331770,1720246594373,-3559.625495,0.000315,30]
[331331771,1720246594428,-310.04421107,0.00031502,7]
[331331772,1720246594478,-1600.64690876,0.00031506,5]
[331331773,1720246594528,-2500.0,0.00031506,5]
[331331774,1720246594575,-2500.0,0.00031506,5]
[331331775,1720246594623,-1632.56944062,0.00031506,5]
[331331776,1720246594670,-800.0,0.00031518,10]
[331331777,1720246594718,-334.26607005,0.00031529,7]
[331331778,1720246594766,-193.39316758,0.00031567,7]
[331331779,1720246594816,-284.21492039,0.00031595,7]
[331331780,1720246594867,-334.26607005,0.0003161,7]
[331331781,1720246594915,-197.18792323,0.00031695,7]
[331331782,1720246594966,-166.79209794,0.00031697,7]
[331331783,1720246595017,-166.66666666,0.00031755,7]
[331331784,1720246595063,-193.14139885,0.00031776,7]
[331331785,1720246595110,-59000.0,0.000318,10]
[331331786,1720246595160,-166.66666666,0.00031881,7]
[331331787,1720246595208,-166.66666666,0.000319,7]
[331331788,1720246595256,-193.39316758,0.00031903,7]
[331331789,1720246595307,-503.77470978,0.00031922,7]
[331331790,1720246595356,-197.18792323,0.00031927,7]
[331331791,1720246595405,-404.94,0.00032,30]
[331331792,1720246595452,-2091.83239204,0.00032,5]
[331331793,1720246595500,-1000.0,0.00032,120]
[331331794,1720246595547,-1000.0,0.00032,120]
[331331795,1720246595593,-1000.0,0.00032,120]
[331331796,1720246595640,-1000.0,0.00032,120]
[331331797,1720246595688,-1000.0,0.00032,120]
[331331798,1720246595736,-2700.0,0.00032,33]
[331331799,1720246595789,-300.0,0.00032,120]
[331331800,1720246595836,-600.0,0.00032,120]
[331331801,1720246595883,-284.21492039,0.00032016,7]
[331331802,1720246595931,-310.04421107,0.00032032,7]
[331331803,1720246595981,-800.0,0.00032066,10]
[331331804,1720246596031,-156.64565515,0.000321,7]
[331331805,1720246596080,-539.17529113,0.00032131,7]
[331331806,1720246596127,-193.39316758,0.0003217,7]
[331331807,1720246596174,-3559.625495,0.000322,30]
[331331808,1720246596223,-5000.0,0.00032254,30]
[331331809,1720246596272,-5000.0,0.00032254,30]
[331331810,1720246596322,-5000.0,0.00032254,30]
[331331811,1720246596369,-5000.0,0.00032254,30]
[331331812,1720246596415,-5000.0,0.00032254,30]
[331331813,1720246596463,-5000.0,0.00032254,30]
[331331814,1720246596511,-5000.0,0.00032254,30]
[331331815,1720246596558,-5000.0,0.00032254,30]
[331331816,1720246596603,-5000.0,0.00032254,30]
[331331817,1720246596647,-2480.94080132,0.00032254,30]
[331331818,1720246596692,-15882.26907765,0.00032291,6]
[331331819,1720246597715,-150.0,0.000323,21]
[331331820,1720246597766,-539.17529113,0.00032309,7]
[331331821,1720246597816,-817.48,0.00032337,30]
[331331822,1720246597866,-1001.0483414,0.00032347,30]
[331331823,1720246597916,-10000.0,0.00032348,30]
[331331824,1720246597967,-10000.0,0.00032348,30]
[331331825,1720246598014,-10000.0,0.00032348,30]
[331331826,1720246598064,-4529.6435153,0.00032348,30]
[331331827,1720246950261,459.78860943,0.00011198,2]
[331331828,1720246950287,300605.23859644,0.00011198,2]
[331331829,1720247030142,496263.20701825,0.00011198,2]
[331331831,1720247137266,51849.94282332,0.00011198,2]
[331331862,1720247397555,-191.0,0.00032281,30]
[331331863,1720247397584,-1000.0,0.00032281,30]
[331331864,1720247397614,-612.79746256,0.00032281,30]
[331331865,1720247397645,-5100.0,0.00032281,33]
[331331866,1720247397674,-500.0,0.00032281,30]
[331331867,1720247397703,-500.0,0.00032281,30]
[331331868,1720247397731,-500.0,0.00032281,30]
[331331869,1720247397759,-597.11601287,0.00032281,30]
[331331870,1720247397786,-243.16837723,0.00032281,60]
[331331871,1720247397814,-418.5321,0.00032281,30]
[331331872,1720247397842,-8836.762445,0.00032281,30]
[331331873,1720247397870,-162.18512373,0.00032281,30]
[331331874,1720247397898,-393.53784092,0.00032281,120]
[331331875,1720247397925,-1566.85,0.00032281,30]
[331331876,1720247397954,-1566.85,0.00032281,30]
[331331877,1720247397983,-1566.85,0.00032281,30]
[331331878,1720247398012,-1566.85,0.00032281,30]
[331331879,1720247398040,-1566.85,0.00032281,30]
[331331880,1720247398072,-1566.85,0.00032281,30]
[331331881,1720247398104,-1566.85,0.00032281,30]
[331331882,1720247398132,-1566.85,0.00032281,30]
[331331883,1720247398161,-1566.85,0.00032281,30]
[331331884,1720247398190,-1566.85,0.00032281,30]
[331331885,1720247398220,-1566.85,0.00032281,30]
[331331886,1720247398250,-1566.85,0.00032281,30]
[331331887,1720247398278,-1566.85,0.00032281,30]
[331331888,1720247398306,-1566.85,0.00032281,30]
[331331889,1720247398333,-1566.85,0.00032281,30]
[331331890,1720247398361,-1566.85,0.00032281,30]
[331331891,1720247398389,-1566.85,0.00032281,30]
[331331892,1720247398422,-1566.85,0.00032281,30]
[331331893,1720247398449,-1566.85,0.00032281,30]
[331331894,1720247398477,-1566.85,0.00032281,30]
[331331895,1720247398506,-1566.85,0.00032281,30]
[331331896,1720247398534,-1566.85,0.00032281,30]
[331331897,1720247398563,-1566.85,0.00032281,30]
[331331898,1720247398593,-1566.94,0.00032281,30]
[331331899,1720247398621,-500.0,0.00032281,30]
[331331900,1720247398652,-500.0,0.00032281,30]
[331331901,1720247398682,-178.10040641,0.00032281,30]
[331331902,1720247398710,-500.0,0.00032281,30]
[331331903,1720247398739,-500.0,0.00032281,30]
[331331904,1720247398767,-500.0,0.00032281,30]
[331331905,1720247398796,-500.0,0.00032281,30]
[331331906,1720247398824,-500.0,0.00032281,30]
[331331907,1720247398852,-544.27514469,0.00032281,30]
[331331908,1720247398880,-392.13975572,0.00032281,30]
[331331909,1720247398909,-299.26486075,0.00032281,30]
[331331910,1720247398937,-500.0,0.00032281,30]
[331331911,1720247398966,-500.0,0.00032281,30]
[331331912,1720247398995,-500.0,0.00032281,30]
[331331913,1720247399024,-500.0,0.00032281,30]
[331331914,1720247399052,-620.82154144,0.00032281,30]
[331331915,1720247399082,-501.20958075,0.00032281,30]
[331331916,1720247399110,-502.91180379,0.00032281,30]
[331331917,1720247399138,-500.0,0.00032281,30]
[331331918,1720247399167,-503.71265949,0.00032281,30]
[331331919,1720247399195,-502.68989778,0.00032281,30]
[331331920,1720247399223,-502.2293863,0.00032281,30]
[331331921,1720247399250,-500.0,0.00032281,30]
[331331922,1720247399279,-500.0,0.00032281,30]
[331331923,1720247399306,-500.0,0.00032281,30]
[331331924,1720247399333,-161.23497785,0.00032281,30]
[331331925,1720247399361,-500.0,0.00032281,30]
[331331926,1720247399388,-500.0,0.00032281,30]
[331331927,1720247399416,-500.0,0.00032281,30]
[331331928,1720247399443,-500.0,0.00032281,30]
[331331929,1720247399470,-500.0,0.00032281,30]
[331331930,1720247399498,-500.0,0.00032281,30]
[331331931,1720247399529,-456.17595594,0.00032281,30]
[331331932,1720247399560,-501.97200112,0.00032281,30]
[331331933,1720247399589,-501.89952939,0.00032281,30]
[331331934,1720247399618,-500.0,0.00032281,30]
[331331935,1720247399649,-500.0,0.00032281,30]
[331331936,1720247399679,-500.0,0.00032281,30]
[331331937,1720247399710,-500.0,0.00032281,30]
[331331938,1720247399740,-500.0,0.00032281,30]
[331331939,1720247399768,-297.15391682,0.00032281,30]
[331331940,1720247399797,-500.0,0.00032281,30]
[331331941,1720247399824,-500.0,0.00032281,30]
[331331942,1720247399854,-500.0,0.00032281,30]
[331331943,1720247399882,-500.0,0.00032281,30]
[331331944,1720247399911,-364.06169086,0.00032281,30]
[331331945,1720247399939,-500.0,0.00032281,30]
[331331946,1720247399968,-500.0,0.00032281,30]
[331331947,1720247399997,-500.0,0.00032281,30]
[331331948,1720247400040,-500.0,0.00032281,30]
[331331949,1720247400076,-500.0,0.00032281,30]
[331331950,1720247400108,-500.0,0.00032281,30]
[331331951,1720247400138,-464.68796976,0.00032281,30]
[331331952,1720247400168,-500.0,0.00032281,30]
[331331953,1720247400199,-500.0,0.00032281,30]
[331331954,1720247400229,-500.0,0.00032281,30]
[331331955,1720247400259,-500.0,0.00032281,30]
[331331956,1720247400290,-500.0,0.00032281,30]
[331331957,1720247400320,-500.0,0.00032281,30]
[331331958,1720247400350,-500.0,0.00032281,30]
[331331959,1720247400667,-500.0,0.00032281,30]
[331331960,1720247401465,-500.0,0.00032281,30]
[331331961,1720247402538,-500.0,0.00032281,30]
[331331962,1720247403481,-500.0,0.00032281,30]
[331331963,1720247404481,-543.72885944,0.00032281,30]
[331331964,1720247404512,-500.0,0.00032281,30]
[331331965,1720247404546,-547.76677702,0.00032281,30]
[331331966,1720247404580,-500.0,0.00032281,30]
[331331967,1720247404611,-500.0,0.00032281,30]
[331331968,1720247404644,-500.0,0.00032281,30]
[331331969,1720247404675,-500.0,0.00032281,30]
[331331970,1720247404706,-563.50017339,0.00032281,30]
[331331971,1720247404740,-500.0,0.00032281,30]
[331331972,1720247404775,-500.0,0.00032281,30]
[331331973,1720247404805,-500.0,0.00032281,30]
[331331974,1720247404841,-510.62898777,0.00032281,30]
[331331975,1720247404872,-500.0,0.00032281,30]
[331331976,1720247404903,-500.0,0.00032281,30]
[331331977,1720247404933,-500.0,0.00032281,30]
[331331978,1720247404964,-500.90172314,0.00032281,30]
[331331979,1720247405000,-500.0,0.00032281,30]
[331331980,1720247405033,-500.0,0.00032281,30]
[331331981,1720247405069,-500.0,0.00032281,30]
[331331982,1720247405107,-500.0,0.00032281,30]
[331331983,1720247405136,-500.0,0.00032281,30]
[331331984,1720247405167,-552.34128151,0.00032281,30]
[331331985,1720247405198,-509.4072521,0.00032281,30]
[331331986,1720247405228,-500.0,0.00032281,30]
[331331987,1720247405259,-500.0,0.00032281,30]
[331331988,1720247405293,-500.0,0.00032281,30]
[331331989,1720247405324,-573.73689676,0.00032281,30]
[331331990,1720247405357,-500.0,0.00032281,30]
[331331991,1720247405388,-500.0,0.00032281,30]
[331331992,1720247405419,-500.0,0.00032281,30]
[331331993,1720247405449,-500.0,0.00032281,30]
[331331994,1720247405482,-500.0,0.00032281,30]
[331331995,1720247405512,-500.0,0.00032281,30]
[331331996,1720247405548,-511.57220458,0.00032281,30]
[331331997,1720247405578,-500.0,0.00032281,30]
[331331998,1720247405608,-631.36644894,0.00032281,30]
[331331999,1720247405640,-500.0,0.00032281,30]
[331332000,1720247405671,-500.0,0.00032281,30]
[331332001,1720247405703,-500.0,0.00032281,30]
[331332002,1720247405732,-500.0,0.00032281,30]
[331332003,1720247405761,-229.25890176,0.00032281,30]
[331332004,1720247405792,-500.0,0.00032281,30]
[331332005,1720247405822,-500.0,0.00032281,30]
[331332006,1720247405854,-500.0,0.00032281,30]
[331332007,1720247405883,-511.0518502,0.00032281,30]
[331332008,1720247405914,-507.81018563,0.00032281,30]
[331332009,1720247405944,-500.0,0.00032281,30]
[331332010,1720247405974,-500.0,0.00032281,30]
[331332011,1720247406005,-500.0,0.00032281,30]
[331332012,1720247407623,-500.0,0.00032281,30]
[331332013,1720247408560,-500.0,0.00032281,30]
[331332014,1720247408597,-500.0,0.00032281,30]
[331332015,1720247408631,-500.0,0.00032281,30]
[331332016,1720247408670,-500.0,0.00032281,30]
[331332017,1720247408703,-500.0,0.00032281,30]
[331332018,1720247408732,-500.0,0.00032281,30]
[331332019,1720247408761,-504.83183372,0.00032281,30]
[331332020,1720247408795,-500.0,0.00032281,30]
[331332021,1720247408823,-500.0,0.00032281,30]
[331332022,1720247408853,-509.99914251,0.00032281,30]
[331332023,1720247408881,-500.0,0.00032281,30]
[331332024,1720247408911,-500.0,0.00032281,30]
[331332025,1720247408941,-452.48765783,0.00032281,30]
[331332026,1720247408975,-500.0,0.00032281,30]
[331332027,1720247409007,-504.25506252,0.00032281,30]
[331332028,1720247409043,-500.0,0.00032281,30]
[331332029,1720247409079,-500.0,0.00032281,30]
[331332030,1720247409111,-500.0,0.00032281,30]
[331332031,1720247409142,-500.0,0.00032281,30]
[331332032,1720247409174,-500.0,0.00032281,30]
[331332033,1720247409205,-500.0,0.00032281,30]
[331332034,1720247409236,-168.4321692,0.00032281,30]
[331332035,1720247409268,-500.0,0.00032281,30]
[331332036,1720247409301,-500.0,0.00032281,30]
[331332037,1720247409333,-500.0,0.00032281,30]
[331332038,1720247409363,-500.0,0.00032281,30]
[331332039,1720247409393,-500.0,0.00032281,30]
[331332040,1720247409424,-500.0,0.00032281,30]
[331332041,1720247409453,-500.0,0.00032281,30]
[331332042,1720247409486,-500.0,0.00032281,30]
[331332043,1720247409516,-171.56593412,0.00032281,30]
[331332044,1720247409548,-500.0,0.00032281,30]
[331332045,1720247409577,-500.0,0.00032281,30]
[331332046,1720247409612,-500.0,0.00032281,30]
[331332047,1720247409658,-500.0,0.00032281,30]
[331332048,1720247409690,-500.0,0.00032281,30]
[331332049,1720247409719,-500.0,0.00032281,30]
[331332050,1720247409752,-500.0,0.00032281,30]
[331332051,1720247409783,-500.0,0.00032281,30]
[331332052,1720247409813,-500.0,0.00032281,30]
[331332053,1720247409843,-300.41417164,0.00032281,30]
[331332054,1720247409872,-500.0,0.00032281,30]
[331332055,1720247409901,-500.0,0.00032281,30]
[331332056,1720247409931,-546.34808082,0.00032281,30]
[331332057,1720247409963,-500.0,0.00032281,30]
[331332058,1720247409993,-500.0,0.00032281,30]
[331332059,1720247410024,-500.0,0.00032281,30]
[331332060,1720247410054,-500.0,0.00032281,30]
[331332061,1720247410086,-500.0,0.00032281,30]
[331332062,1720247410118,-270.78,0.00032281,30]
[331332063,1720247410394,-500.0,0.00032281,30]
[331332064,1720247410424,-500.0,0.00032281,30]
[331332065,1720247410453,-500.0,0.00032281,30]
[331332066,1720247410482,-500.0,0.00032281,30]